fUST/lending_fUST_20241031
["ID","MTS","AMOUNT","RATE_DAILY","PERIOD"]
[341089553,1730362241506,-200.0,0.00024658,2]
[341089554,1730362241516,-500.118796,0.00024658,4]
[341089555,1730362241525,-200.0,0.00024658,15]
[341089556,1730362241534,-596.3264554,0.00024658,2]
[341089557,1730362241544,-573.41976774,0.00024658,2]
[341089558,1730362241553,-500.0,0.00024658,2]
[341089559,1730362241562,-1506.631504,0.00024897,2]
[341089560,1730362241571,-14306.68,0.00025057,10]
[341089561,1730362241580,-500.0,0.00025067,2]
[341089562,1730362241590,-500.0,0.00025067,2]
[341089563,1730362241599,-212.36577874,0.00025067,2]
[341089564,1730362241608,-199.47790834,0.00025067,2]
[341089565,1730362241617,-500.0,0.00025067,2]
[341089566,1730362241627,-500.0,0.00025067,2]
[341089567,1730362241636,-500.0,0.00025067,2]
[341089568,1730362241646,-500.0,0.00025067,2]
[341089569,1730362241657,-500.0,0.00025067,2]
[341089570,1730362241668,-191.2654787,0.00025344,2]
[341089571,1730362241677,-17168.02,0.0002564,10]
[341089572,1730362241686,-5000.0,0.0002566,2]
[341089573,1730362241695,-168.27,0.0002566,3]
[341089574,1730362241706,-504.83,0.0002566,3]
[341089575,1730362241716,-5000.0,0.0002567,2]
[341089576,1730362241727,-5000.0,0.0002567,2]
[341089577,1730362241737,-5000.0,0.0002567,2]
[341089578,1730362241751,-5000.0,0.0002567,2]
[341089579,1730362241762,-5000.0,0.0002567,2]
[341089580,1730362241772,-151.0,0.00025671,7]
[341089581,1730362241781,-151.0,0.00025671,7]
[341089582,1730362241792,-151.0,0.00025671,7]
[341089583,1730362241802,-287.855792,0.00025671,7]
[341089584,1730362241812,-604.25282314,0.00025673,2]
[341089585,1730362241824,-500.0,0.00025673,2]
[341089586,1730362241834,-500.0,0.00025673,2]
[341089587,1730362241846,-169.06144595,0.00025673,2]
[341089588,1730362241856,-500.0,0.00025673,2]
[341089589,1730362241865,-500.3275878,0.00025673,2]
[341089590,1730362241875,-440.02763831,0.00025673,2]
[341089591,1730362241884,-271.55909879,0.00025673,2]
[341089592,1730362241893,-504.80913533,0.00025673,2]
[341089593,1730362241903,-631.46172926,0.00025673,2]
[341089594,1730362241913,-500.0,0.00025673,2]
[341089595,1730362241923,-5000.0,0.00025694,2]
[341089596,1730362241932,-5000.0,0.00025694,2]
[341089597,1730362241943,-587.0,0.00025975,2]
[341089598,1730362241953,-587.0,0.00026616,2]
[341089599,1730362241962,-336.54,0.0002703,3]
[341089600,1730362241971,-372.74620359,0.00027397,2]
[341089601,1730362242076,-1000.0,0.00027452,5]
[341089602,1730362242086,-1000.0,0.00027452,5]
[341089603,1730362242095,-501.57945964,0.00027452,5]
[341089604,1730362242106,-1000.0,0.00027452,5]
[341089605,1730362242118,-1000.0,0.00027452,5]
[341089606,1730362242130,-1000.0,0.00027452,5]
[341089607,1730362242140,-500.0,0.00027582,2]
[341089608,1730362242151,-500.0,0.00027582,2]
[341089609,1730362242161,-510.0,0.00027582,2]
[341089610,1730362242175,-163.273978,0.00027641,2]
[341089611,1730362242184,-823.0,0.00028226,2]
[341089612,1730362242194,-181.46878131,0.00028315,19]
[341089613,1730362242205,-150.0,0.00028541,2]
[341089614,1730362242215,-686.35835946,0.00028613,2]
[341089615,1730362242224,-151.0,0.00028661,7]
[341089616,1730362242233,-151.0,0.00028661,7]
[341089617,1730362242244,-151.0,0.00028661,7]
[341089618,1730362242254,-151.0,0.00028661,7]
[341089619,1730362242263,-151.0,0.00028661,7]
[341089620,1730362242273,-151.0,0.00028661,7]
[341089621,1730362242282,-151.0,0.00028661,7]
[341089622,1730362242291,-5000.0,0.00028915,2]
[341089623,1730362242300,-151.0,0.00028915,7]
[341089624,1730362242310,-151.0,0.00028915,7]
[341089625,1730362242319,-163.763172,0.00028915,7]
[341089626,1730362242330,-151.0,0.00028915,7]
[341089627,1730362242339,-151.0,0.00028915,7]
[341089628,1730362242350,-238.725098,0.00028915,7]
[341089629,1730362242360,-238.725098,0.00028915,7]
[341089630,1730362242370,-242.080192,0.00028925,7]
[341089631,1730362242379,-242.080192,0.00028925,7]
[341089632,1730362242388,-5000.0,0.00028925,2]
[341089633,1730362242397,-500.0,0.0002893,2]
[341089634,1730362242406,-150.0,0.00029026,2]
[341089635,1730362242415,-200.0,0.000291,120]
[341089636,1730362242425,-280.38927,0.000291,120]
[341089637,1730362242434,-839.60082974,0.00029177,30]
[341089638,1730362242444,-500.0,0.00029177,30]
[341089639,1730362242454,-500.0,0.00029177,30]
[341089640,1730362242464,-500.0,0.00029177,30]
[341089641,1730362242473,-500.0,0.00029177,30]
[341089642,1730362242482,-500.0,0.00029177,30]
[341089643,1730362242492,-500.0,0.00029177,30]
[341089644,1730362242502,-500.0,0.00029177,30]
[341089645,1730362242511,-500.0,0.00029177,30]
[341089646,1730362242521,-500.0,0.00029177,30]
[341089647,1730362242530,-500.0,0.00029177,30]
[341089648,1730362242540,-150.0,0.0002924,2]
[341089649,1730362242550,-823.0,0.00029278,2]
[341089650,1730362242560,-150.0,0.00029321,2]
[341089651,1730362242569,-286.833348,0.00029542,2]
[341089652,1730362242578,-286.833348,0.0002955,2]
[341089653,1730362242588,-286.833348,0.00029558,2]
[341089654,1730362242597,-286.833348,0.00029566,2]
[341089655,1730362242606,-286.833348,0.00029574,2]
[341089656,1730362242616,-286.833348,0.00029581,2]
[341089657,1730362242626,-286.833348,0.00029589,2]
[341089658,1730362242635,-286.833348,0.00029597,2]
[341089659,1730362242644,-286.833348,0.00029605,2]
[341089660,1730362242654,-286.833348,0.00029612,2]
[341089661,1730362242663,-286.833348,0.0002962,2]
[341089662,1730362242672,-286.833348,0.00029628,2]
[341089663,1730362242682,-286.833348,0.00029636,2]
[341089664,1730362242691,-286.833348,0.00029644,2]
[341089665,1730362242702,-286.833348,0.00029651,2]
[341089666,1730362242712,-286.833348,0.00029659,2]
[341089667,1730362242721,-286.833348,0.00029667,2]
[341089668,1730362242731,-286.833348,0.00029675,2]
[341089669,1730362242740,-187.88,0.0002968,2]
[341089670,1730362242750,-286.833348,0.00029683,2]
[341089671,1730362242759,-286.833348,0.0002969,2]
[341089672,1730362242769,-150.0,0.00029692,2]
[341089673,1730362242779,-211.50675,0.0003,2]
[341089674,1730362242789,-1869.36685704,0.0003,120]
[341089675,1730362242799,-151.0,0.0003,120]
[341089676,1730362242808,-193.7595,0.0003,2]
[341089677,1730362242818,-245.0,0.0003,2]
[341089678,1730362242828,-150.0,0.00030012,2]
[341089679,1730362242838,-686.35835946,0.00030036,2]
[341089680,1730362242847,-151.0,0.00030036,7]
[341089681,1730362242857,-169.587127,0.00030036,7]
[341089682,1730362242867,-151.0,0.00030036,7]
[341089683,1730362242877,-5000.0,0.00030133,2]
[341089684,1730362242886,-5000.0,0.00030134,2]
[341089685,1730362242896,-160.0,0.00030135,10]
[341089686,1730362242905,-242.080192,0.00030135,7]
[341089687,1730362242915,-242.080192,0.00030135,7]
[341089688,1730362242924,-5000.0,0.00030135,2]
[341089689,1730362242934,-5000.0,0.00030135,2]
[341089691,1730362242944,-5000.0,0.00030135,2]
[341089692,1730362242953,-5000.0,0.00030135,2]
[341089693,1730362242963,-5000.0,0.00030135,2]
[341089694,1730362242973,-5000.0,0.00030135,2]
[341089695,1730362242983,-5000.0,0.00030135,2]
[341089696,1730362242993,-5000.0,0.00030135,2]
[341089697,1730362243004,-5000.0,0.00030135,2]
[341089698,1730362243014,-4251.28413022,0.00030135,2]
[341089699,1730362243025,-151.493474,0.00030135,7]
[341089700,1730362243037,-151.0,0.00030135,7]
[341089701,1730362243046,-151.0,0.00030135,7]
[341089702,1730362243056,-151.0,0.00030135,7]
[341089703,1730362243065,-151.0,0.00030135,7]
[341089704,1730362243075,-151.0,0.00030135,7]
[341089705,1730362243084,-151.0,0.00030135,7]
[341089706,1730362243094,-151.0,0.00030135,7]
[341089708,1730362243104,-238.725098,0.00030135,7]
[341089709,1730362243117,-238.725098,0.00030135,7]
[341089710,1730362243127,-194.497781,0.00030135,7]
[341089711,1730362243137,-505.91918646,0.00030136,5]
[341089712,1730362243147,-502.21401065,0.00030136,5]
[341089713,1730362243157,-505.42379159,0.00030136,5]
[341089714,1730362243166,-502.00325745,0.00030136,5]
[341089715,1730362243177,-502.83970058,0.00030136,5]
[341089716,1730362243190,-502.09292435,0.00030136,5]
[341089717,1730362243201,-500.0,0.00030136,5]
[341089718,1730362243210,-502.72808741,0.00030136,5]
[341089719,1730362243219,-558.37326568,0.00030136,5]
[341089720,1730362243229,-505.14022615,0.00030136,5]
[341089721,1730362243238,-501.53152678,0.00030136,5]
[341089722,1730362243248,-500.0,0.00030136,5]
[341089723,1730362243260,-502.84119003,0.00030136,5]
[341089724,1730362243270,-500.0,0.00030136,5]
[341089725,1730362243279,-502.04497251,0.00030136,5]
[341089726,1730362243288,-503.07145176,0.00030136,5]
[341089727,1730362243297,-502.92034233,0.00030136,5]
[341089728,1730362243306,-502.89376383,0.00030136,5]
[341089729,1730362243317,-502.06194082,0.00030136,5]
[341089730,1730362243327,-502.98397746,0.00030136,5]
[341089731,1730362243337,-503.08796966,0.00030136,5]
[341089732,1730362243347,-503.4381573,0.00030136,5]
[341089733,1730362243356,-500.83020901,0.00030136,5]
[341089734,1730362243366,-501.68668571,0.00030136,5]
[341089736,1730362243376,-501.21633662,0.00030136,5]
[341089738,1730362243386,-156.25664864,0.00030136,5]
[341089740,1730362243396,-502.65459726,0.00030136,5]
[341089742,1730362243407,-500.0,0.00030136,5]
[341089744,1730362243417,-501.36254274,0.00030136,5]
[341089747,1730362243428,-502.6458022,0.00030136,5]
[341089749,1730362243438,-413.59682162,0.00030136,5]
[341089750,1730362243447,-504.28779087,0.00030136,5]
[341089754,1730362243522,-505.6131961,0.00030136,5]
[341089755,1730362243531,-502.74527115,0.00030136,5]
[341089756,1730362243541,-504.2208762,0.00030136,5]
[341089757,1730362243551,-500.7826596,0.00030136,5]
[341089758,1730362243561,-500.0,0.00030136,5]
[341089759,1730362243571,-500.0,0.00030136,5]
[341089760,1730362243580,-509.254381,0.00030136,5]
[341089762,1730362243590,-500.0,0.00030136,5]
[341089764,1730362243600,-501.86172139,0.00030136,5]
[341089766,1730362243610,-502.14947389,0.00030136,5]
[341089768,1730362243620,-506.14842396,0.00030136,5]
[341089770,1730362243630,-502.28241544,0.00030136,5]
[341089772,1730362243639,-504.78816683,0.00030136,5]
[341089774,1730362243650,-503.39904094,0.00030136,5]
[341089776,1730362243660,-510.806401,0.00030136,5]
[341089778,1730362243670,-500.74103745,0.00030136,5]
[341089780,1730362243680,-500.0,0.00030136,5]
[341089782,1730362243689,-505.53751388,0.00030136,5]
[341089784,1730362243699,-514.37935497,0.00030136,5]
[341089786,1730362243711,-502.76016331,0.00030136,5]
[341089788,1730362243720,-510.03052161,0.00030136,5]
[341089790,1730362243730,-1001.87906573,0.00030136,30]
[341089792,1730362243739,-501.12959435,0.00030136,5]
[341089794,1730362243749,-500.64307975,0.00030136,5]
[341089796,1730362243759,-502.89961759,0.00030136,5]
[341089798,1730362243769,-500.0,0.00030136,5]
[341089800,1730362243779,-507.09665091,0.00030136,5]
[341089802,1730362243789,-504.15101354,0.00030136,5]
[341089804,1730362243799,-504.27833559,0.00030136,5]
[341089806,1730362243808,-506.29511336,0.00030136,5]
[341089808,1730362243817,-504.06978989,0.00030136,5]
[341089810,1730362243826,-504.75295574,0.00030136,5]
[341089812,1730362243835,-500.0,0.00030136,5]
[341089814,1730362243845,-506.67290337,0.00030136,5]
[341089816,1730362243855,-500.0,0.00030136,5]
[341089818,1730362243865,-503.79045199,0.00030136,5]
[341089820,1730362243876,-500.0,0.00030136,5]
[341089822,1730362243886,-500.0,0.00030136,5]
[341089824,1730362243895,-504.95958288,0.00030136,5]
[341089826,1730362243905,-503.90658173,0.00030136,5]
[341089828,1730362243914,-501.82585977,0.00030136,5]
[341089830,1730362243926,-503.58185941,0.00030136,5]
[341089832,1730362243936,-479.14076692,0.00030136,5]
[341089834,1730362243946,-500.0,0.00030136,5]
[341089836,1730362243959,-513.248286,0.00030136,5]
[341089838,1730362243970,-500.0,0.00030136,5]
[341089840,1730362243980,-500.0,0.00030136,2]
[341089843,1730362243990,-500.0,0.00030136,5]
[341089845,1730362244000,-503.15602645,0.00030136,5]
[341089847,1730362244009,-500.0,0.00030136,5]
[341089849,1730362244019,-500.0,0.00030136,5]
[341089851,1730362244029,-500.0,0.00030136,5]
[341089853,1730362244039,-500.0,0.00030136,5]
[341089855,1730362244048,-500.0,0.00030136,5]
[341089857,1730362244058,-507.17951078,0.00030136,5]
[341089859,1730362244069,-500.0,0.00030136,5]
[341089860,1730362244078,-500.0,0.00030136,5]
[341089863,1730362244088,-500.0,0.00030136,5]
[341089865,1730362244099,-509.71927564,0.00030136,5]
[341089867,1730362244111,-500.0,0.00030136,5]
[341089869,1730362244122,-513.32397946,0.00030136,5]
[341089871,1730362244131,-500.0,0.00030136,5]
[341089873,1730362244141,-511.24344209,0.00030136,5]
[341089875,1730362244151,-500.0,0.00030136,5]
[341089876,1730362244160,-500.0,0.00030136,5]
[341089879,1730362244175,-200.0,0.00030136,5]
[341089882,1730362244194,-500.0,0.00030136,5]
[341089885,1730362244215,-500.0,0.00030136,5]
[341089887,1730362244229,-500.0,0.00030136,5]
[341089890,1730362244245,-502.52653009,0.00030136,5]
[341089892,1730362244261,-504.6392933,0.00030136,5]
[341089895,1730362244277,-495.0,0.00030136,5]
[341089898,1730362244293,-500.0,0.00030136,5]
[341089900,1730362244308,-510.93430715,0.00030136,5]
[341089903,1730362244323,-500.0,0.00030136,5]
[341089905,1730362244336,-503.19694912,0.00030136,5]
[341089908,1730362244353,-510.02401457,0.00030136,5]
[341089911,1730362244367,-509.05725315,0.00030136,5]
[341089913,1730362244378,-500.0,0.00030136,5]
[341089915,1730362244391,-500.0,0.00030136,5]
[341089918,1730362244406,-500.0,0.00030136,5]
[341089920,1730362244420,-500.0,0.00030136,5]
[341089923,1730362244436,-500.0,0.00030136,5]
[341089926,1730362244454,-524.70832119,0.00030136,5]
[341089928,1730362244475,-500.0,0.00030136,5]
[341089930,1730362244487,-500.0,0.00030136,5]
[341089932,1730362244500,-525.7005503,0.00030136,5]
[341089935,1730362244516,-500.0,0.00030136,5]
[341089938,1730362244533,-641.77,0.00030136,5]
[341089940,1730362244545,-507.67911227,0.00030136,5]
[341089943,1730362244560,-502.0263834,0.00030136,5]
[341089945,1730362244574,-725.45,0.00030136,5]
[341089948,1730362244586,-500.0,0.00030136,5]
[341089950,1730362244599,-500.0,0.00030136,5]
[341089952,1730362244612,-505.73735163,0.00030136,5]
[341089955,1730362244625,-230.98713841,0.00030136,5]
[341089957,1730362244638,-500.0,0.00030136,5]
[341089959,1730362244651,-500.0,0.00030136,5]
[341089962,1730362244664,-232.82595759,0.00030136,5]
[341089964,1730362244676,-502.66715088,0.00030136,5]
[341089966,1730362244688,-500.0,0.00030136,5]
[341089969,1730362244703,-509.64555733,0.00030136,5]
[341089971,1730362244716,-306.94113792,0.00030136,5]
[341089973,1730362244730,-500.0,0.00030136,5]
[341089975,1730362244742,-538.7187451,0.00030136,5]
[341089978,1730362244755,-500.0,0.00030136,5]
[341089980,1730362244769,-500.0,0.00030136,5]
[341089983,1730362244782,-500.0,0.00030136,5]
[341089985,1730362244794,-500.0,0.00030136,5]
[341089987,1730362244808,-500.0,0.00030136,5]
[341089989,1730362244821,-500.0,0.00030136,5]
[341089992,1730362244833,-515.80049739,0.00030136,5]
[341089994,1730362244847,-500.0,0.00030136,5]
[341089997,1730362244860,-237.5872132,0.00030136,5]
[341089999,1730362244872,-503.90932022,0.00030136,5]
[341090001,1730362244885,-500.0,0.00030136,5]
[341090003,1730362244899,-500.0,0.00030136,5]
[341090006,1730362244913,-500.0,0.00030136,5]
[341090008,1730362244927,-500.0,0.00030136,5]
[341090010,1730362244938,-500.0,0.00030136,5]
[341090013,1730362244953,-500.0,0.00030136,5]
[341090014,1730362244962,-500.0,0.00030136,5]
[341090016,1730362244972,-500.0,0.00030136,5]
[341090019,1730362244983,-500.0,0.00030136,5]
[341090021,1730362244994,-500.0,0.00030136,5]
[341090023,1730362245004,-500.0,0.00030136,5]
[341090025,1730362245014,-511.57766962,0.00030136,5]
[341090026,1730362245024,-191.18888332,0.00030136,5]
[341090028,1730362245034,-500.0,0.00030136,5]
[341090043,1730362245181,-500.0,0.00030136,5]
[341090045,1730362245192,-500.0,0.00030136,5]
[341090047,1730362245203,-500.0,0.00030136,5]
[341090048,1730362245212,-500.0,0.00030136,5]
[341090049,1730362245221,-500.0,0.00030136,5]
[341090050,1730362245231,-500.0,0.00030136,5]
[341090051,1730362245241,-500.0,0.00030136,5]
[341090052,1730362245251,-177.38360105,0.00030136,5]
[341090053,1730362245261,-500.0,0.00030136,5]
[341090054,1730362245270,-500.0,0.00030136,5]
[341090055,1730362245280,-3080.59,0.00030136,5]
[341090056,1730362245289,-242.080192,0.00030136,7]
[341090057,1730362245299,-500.0,0.00030136,5]
[341090058,1730362245308,-242.080192,0.00030136,7]
[341090059,1730362245318,-500.0,0.00030136,5]
[341090060,1730362245327,-242.080192,0.00030136,7]
[341090061,1730362245338,-242.080192,0.00030136,7]
[341090062,1730362245347,-450.82704423,0.00030136,5]
[341090064,1730362245357,-500.0,0.00030136,5]
[341090066,1730362245367,-509.89289849,0.00030136,5]
[341090068,1730362245376,-500.0,0.00030136,5]
[341090070,1730362245387,-500.0,0.00030136,5]
[341090072,1730362245397,-500.0,0.00030136,5]
[341090074,1730362245406,-507.02971178,0.00030136,5]
[341090076,1730362245416,-508.80802351,0.00030136,5]
[341090078,1730362245425,-500.0,0.00030136,5]
[341090080,1730362245435,-500.0,0.00030136,5]
[341090082,1730362245445,-500.0,0.00030136,5]
[341090084,1730362245457,-500.0,0.00030136,5]
[341090086,1730362245467,-500.0,0.00030136,5]
[341090088,1730362245477,-500.0,0.00030136,5]
[341090090,1730362245487,-3457.65,0.00030136,5]
[341090092,1730362245497,-500.0,0.00030136,5]
[341090094,1730362245509,-506.63174893,0.00030136,5]
[341090096,1730362245518,-500.0,0.00030136,5]
[341090098,1730362245528,-500.0,0.00030136,5]
[341090100,1730362245538,-509.49678911,0.00030136,5]
[341090102,1730362245548,-500.0,0.00030136,5]
[341090105,1730362245559,-506.56583498,0.00030136,5]
[341090107,1730362245569,-500.0,0.00030136,5]
[341090109,1730362245581,-500.0,0.00030136,5]
[341090111,1730362245590,-500.0,0.00030136,5]
[341090113,1730362245600,-500.0,0.00030136,5]
[341090115,1730362245610,-151.0,0.00030136,7]
[341090116,1730362245619,-6648.46,0.00030136,3]
[341090119,1730362245629,-500.0,0.00030136,5]
[341090121,1730362245640,-151.0,0.00030136,7]
[341090123,1730362245649,-151.0,0.00030136,7]
[341090125,1730362245660,-500.0,0.00030136,5]
[341090127,1730362245670,-500.0,0.00030136,5]
[341090129,1730362245680,-500.0,0.00030136,5]
[341090131,1730362245690,-509.09193813,0.00030136,5]
[341090133,1730362245700,-500.0,0.00030136,5]
[341090135,1730362245711,-500.0,0.00030136,5]
[341090137,1730362245720,-500.0,0.00030136,5]
[341090139,1730362245730,-500.0,0.00030136,5]
[341090141,1730362245741,-500.0,0.00030136,5]
[341090143,1730362245752,-620.75638873,0.00030136,5]
[341090145,1730362245762,-500.0,0.00030136,5]
[341090147,1730362245773,-685.29,0.00030136,5]
[341090149,1730362245783,-500.0,0.00030136,5]
[341090151,1730362245793,-500.0,0.00030136,5]
[341090153,1730362245803,-500.0,0.00030136,5]
[341090155,1730362245812,-500.0,0.00030136,5]
[341090157,1730362245822,-500.0,0.00030136,5]
[341090159,1730362245832,-500.0,0.00030136,5]
[341090161,1730362245842,-502.40125035,0.00030136,5]
[341090163,1730362245852,-503.31196164,0.00030136,5]
[341090165,1730362245862,-500.0,0.00030136,5]
[341090167,1730362245872,-505.82704231,0.00030136,5]
[341090168,1730362245882,-151.0,0.00030136,7]
[341090171,1730362245892,-151.0,0.00030136,7]
[341090172,1730362245902,-151.0,0.00030136,7]
[341090174,1730362245912,-500.0,0.00030136,2]
[341090177,1730362245922,-500.0,0.00030136,2]
[341090178,1730362245932,-500.0,0.00030136,2]
[341090180,1730362245941,-500.0,0.00030136,2]
[341090182,1730362245951,-500.0,0.00030136,2]
[341090184,1730362245961,-500.0,0.00030136,2]
[341090186,1730362245970,-500.0,0.00030136,2]
[341090189,1730362245981,-500.0,0.00030136,2]
[341090192,1730362245992,-500.0,0.00030136,2]
[341090195,1730362246001,-500.0,0.00030136,2]
[341090198,1730362246012,-500.0,0.00030136,2]
[341090201,1730362246022,-500.0,0.00030136,2]
[341090203,1730362246032,-500.0,0.00030136,2]
[341090205,1730362246042,-502.48831575,0.00030136,5]
[341090207,1730362246051,-500.0,0.00030136,2]
[341090209,1730362246061,-500.0,0.00030136,2]
[341090211,1730362246071,-109.1987774,0.00030136,2]
[341090244,1730362246372,-7638.54306315,0.00030013,2]
[341090246,1730362246382,-390.8012226,0.00030136,2]
[341090248,1730362246392,-500.0,0.00030136,2]
[341090250,1730362246402,-502.48312042,0.00030136,5]
[341090252,1730362246412,-500.0,0.00030136,2]
[341090254,1730362246422,-500.0,0.00030136,2]
[341090257,1730362246432,-500.0,0.00030136,5]
[341090259,1730362246443,-517.68475441,0.00030136,5]
[341090261,1730362246455,-302.56363669,0.00030136,5]
[341090263,1730362246466,-151.0,0.00030136,7]
[341090265,1730362246476,-151.0,0.00030136,7]
[341090267,1730362246485,-500.0,0.00030136,5]
[341090269,1730362246494,-311.93203897,0.00030136,5]
[341090271,1730362246506,-500.0,0.00030136,5]
[341090273,1730362246515,-500.0,0.00030136,5]
[341090275,1730362246525,-161.61028222,0.00030136,5]
[341090278,1730362246545,-338.26188045,0.00030136,5]
[341090280,1730362246557,-0.12783733,0.00030136,5]
[341090282,1730362246566,-501.87271358,0.00030136,5]
[341090284,1730362246575,-421.87444759,0.00030136,5]
[341090335,1730362247047,-96.18965185,0.00030136,5]
[341090338,1730362247059,-572.60189525,0.00030136,5]
[341090340,1730362247069,-517.23528017,0.00030136,5]
[341090342,1730362247079,-500.0,0.00030136,5]
[341090344,1730362247088,-500.0,0.00030136,5]
[341090346,1730362247097,-513.12257077,0.00030136,5]
[341090348,1730362247109,-606.14847352,0.00030136,5]
[341090350,1730362247118,-500.0,0.00030136,5]
[341090352,1730362247127,-500.0,0.00030136,5]
[341090354,1730362247136,-608.84118996,0.00030136,5]
[341090355,1730362247146,-500.69766252,0.00030136,5]
[341090357,1730362247156,-500.0,0.00030136,5]
[341090359,1730362247165,-500.0,0.00030136,5]
[341090361,1730362247174,-375.18608127,0.00030136,5]
[341090363,1730362247186,-359.34996773,0.00030136,5]
[341090365,1730362247195,-514.94746752,0.00030136,5]
[341090367,1730362247207,-500.0,0.00030136,5]
[341090369,1730362247216,-151.0,0.00030136,7]
[341090371,1730362247225,-151.0,0.00030136,7]
[341090373,1730362247234,-151.0,0.00030136,7]
[341090375,1730362247243,-151.0,0.00030136,7]
[341090377,1730362247253,-151.0,0.00030136,7]
[341090387,1730362247344,-151.0,0.00030136,7]
[341090389,1730362247354,-151.0,0.00030136,7]
[341090391,1730362247363,-151.0,0.00030136,7]
[341090393,1730362247372,-151.0,0.00030136,7]
[341090395,1730362247382,-508.10033179,0.00030136,5]
[341090397,1730362247391,-151.0,0.00030136,7]
[341090399,1730362247401,-151.0,0.00030136,7]
[341090401,1730362247410,-151.0,0.00030136,7]
[341090403,1730362247419,-503.00011884,0.00030136,5]
[341090405,1730362247428,-501.88497006,0.00030136,5]
[341090407,1730362247437,-500.0,0.00030136,5]
[341090409,1730362247446,-502.52418725,0.00030136,5]
[341090411,1730362247457,-506.93291273,0.00030136,5]
[341090413,1730362247467,-500.0,0.00030136,5]
[341090415,1730362247476,-500.0,0.00030136,5]
[341090417,1730362247485,-500.0,0.00030136,5]
[341090419,1730362247494,-500.0,0.00030136,5]
[341090422,1730362247504,-500.0,0.00030136,2]
[341090424,1730362247513,-500.0,0.00030136,5]
[341090426,1730362247522,-503.84931165,0.00030136,5]
[341090428,1730362247531,-151.0,0.00030136,7]
[341090430,1730362247540,-151.0,0.00030136,7]
[341090432,1730362247549,-151.0,0.00030136,7]
[341090434,1730362247559,-500.0,0.00030136,5]
[341090436,1730362247569,-504.10522225,0.00030136,5]
[341090438,1730362247581,-1233.18,0.00030136,5]
[341090440,1730362247590,-500.0,0.00030136,5]
[341090442,1730362247601,-151.0,0.00030136,7]
[341090444,1730362247611,-173.694803,0.00030136,7]
[341090446,1730362247620,-500.0,0.00030136,5]
[341090448,1730362247630,-500.0,0.00030136,5]
[341090450,1730362247639,-500.0,0.00030136,5]
[341090452,1730362247649,-500.0,0.00030136,5]
[341090454,1730362247659,-500.0,0.00030136,5]
[341090456,1730362247668,-500.0,0.00030136,5]
[341090458,1730362247678,-502.80695568,0.00030136,5]
[341090460,1730362247687,-238.725098,0.00030136,7]
[341090462,1730362247696,-238.725098,0.00030136,7]
[341090464,1730362247709,-238.725098,0.00030136,7]
[341090466,1730362247719,-502.73112421,0.00030136,5]
[341090468,1730362247729,-500.0,0.00030136,5]
[341090470,1730362247738,-500.0,0.00030136,5]
[341090472,1730362247748,-238.725098,0.00030136,7]
[341090474,1730362247757,-238.725098,0.00030136,7]
[341090476,1730362247767,-238.725098,0.00030136,7]
[341090478,1730362247776,-500.0,0.00030136,5]
[341090480,1730362247785,-508.49581255,0.00030136,5]
[341090482,1730362247794,-500.0,0.00030136,5]
[341090484,1730362247803,-500.0,0.00030136,5]
[341090486,1730362247812,-501.45843499,0.00030136,5]
[341090487,1730362247823,-508.39961586,0.00030136,5]